[Event "Irish Championship 2020"]
[Site "Dublin"]
[Date "2020.08.08"]
[Round "8.1"]
[White "Brady, Stephen"]
[Black "Daly, Colm"]
[Result "1/2-1/2"]
[ECO "A09"]
[WhiteElo "2290"]
[BlackElo "2248"]
[Annotator "ChessBase"]
[PlyCount "90"]
[EventDate "2020.08.01"]
[EventType "swiss"]
[EventCountry "IRL"]
[SourceTitle "playchess.com"]
[Source "ChessBase"]
[SourceQuality "1"]
[TimeControl "8100+35"]

1. Nf3 {[%emt 0:00:00]} Nf6 {[%emt 0:18:42]} 2. g3 {[%emt 0:00:00]} d5 {[%emt 0:00:11]} 3. Bg2 {[%emt 0:00:20]} c5 {[%emt 0:06:07]} 4. O-O {[%emt 0:00:29]} Nc6 {[%emt 0:00:04]} 5. c4 {[%emt 0:00:30]} d4 {[%emt 0:00:10]} 6. d3 {[%emt 0:00:33]} e5 {[%emt 0:03:58]} 7. e3 {[%emt 0:09:54]} Be7 {[%emt 0:02:30]} 8. exd4 {[%emt 0:00:21]} exd4 {[%emt 0:00:09]} 9. Bg5 {[%emt 0:04:44]} h6 {[%emt 0:05:50]} 10. Bxf6 {[%emt 0:00:54]} Bxf6 {[%emt 0:00:06]} 11. Re1+ {[%emt 0:00:51]} Kf8 {[%emt 0:00:06]} 12. Nbd2 {[%emt 0:00:49]} Rb8 {[%emt 0:02:13]} 13. a3 {[%emt 0:35:06]} a5 {[%emt 0:19:05]} 14. Re2 {[%emt 0:09:53]} h5 {[%emt 0:04:50]} 15. Ne4 {[%emt 0:09:21]} Be7 {[%emt 0:00:03]} 16. Qd2 {[%emt 0:01:17]} Qc7 {[%emt 0:05:45]} 17. Rae1 {[%emt 0:03:35]} Bg4 {[%emt 0:02:51]} 18. h3 {[%emt 0:00:59]} Bd7 {[%emt 0:00:10]} 19. Neg5 {[%emt 0:06:14]} Re8 {[%emt 0:01:39]} 20. Ne5 {[%emt 0:09:48]} Nxe5 {[%emt 0:00:10]} 21. Rxe5 {[%emt 0:00:06]} Bf6 {[%emt 0:18:40]} 22. Rxe8+ {[%emt 0:02:30]} Bxe8 {[%emt 0:00:04]} 23. Bd5 {[%emt 0:05:05]} g6 {[%emt 0:17:45]} 24. Ne4 {[%emt 0:08:52]} Be7 {[%emt 0:01:20]} 25. Qe2 {[%emt 0:00:29]} Kg7 {[%emt 0:01:27]} 26. Qf3 {[%emt 0:01:57]} Rf8 {[%emt 0:02:00]} 27. h4 {[%emt 0:00:23]} b6 {[%emt 0:03:32]} 28. Ng5 {[%emt 0:01:21]} a4 {[%emt 0:02:53]} 29. Kg2 {[%emt 0:04:22]} Qd6 {[%emt 0:02:14]} 30. Re4 {[%emt 0:03:29]} Bxg5 {[%emt 0:02:28]} 31. hxg5 {[%emt 0:00:05]} Bd7 {[%emt 0:00:09]} 32. Rf4 {[%emt 0:07:34]} f5 {[%emt 0:03:20]} 33. gxf6+ {[%emt 0:02:24]} Rxf6 {[%emt 0:00:03]} 34. Rxf6 {[%emt 0:00:17]} Qxf6 {[%emt 0:00:02]} 35. Qe2 {[%emt 0:02:11]} h4 {[%emt 0:01:05]} 36. gxh4 {[%emt 0:00:52]} Qxh4 {[%emt 0:00:48]} 37. Qe5+ {[%emt 0:02:41]} Qf6 {[%emt 0:01:40]} 38. Qxf6+ {[%emt 0:00:30]} Kxf6 {[%emt 0:00:02]} 39. Kf3 {[%emt 0:00:08]} Ke5 {[%emt 0:00:18]} 40. Ke2 {[%emt 0:00:05]} Kf4 {[%emt 0:00:31]} 41. Be4 {[%emt 0:04:43]} g5 {[%emt 0:00:04]} 42. Bd5 {[%emt 0:00:45]} Be8 {[%emt 0:01:07]} 43. Be4 {[%emt 0:00:17]} Bd7 {[%emt 0:08:51]} 44. Bd5 {[%emt 0:00:05]} Be8 {[%emt 0:00:03]} 45. Bb7 {[%emt 0:00:11]} Bd7 {[%emt 0:02:15]} 1/2-1/2

[Event "Irish Championship 2020"]
[Site "Dublin"]
[Date "2020.08.08"]
[Round "8.3"]
[White "O`Donnell, Conor"]
[Black "Venkatesan, Kavin"]
[Result "1-0"]
[ECO "B22"]
[WhiteElo "2304"]
[BlackElo "1946"]
[Annotator "ChessBase"]
[PlyCount "65"]
[EventDate "2020.08.01"]
[EventType "swiss"]
[EventCountry "IRL"]
[SourceTitle "playchess.com"]
[Source "ChessBase"]
[SourceQuality "1"]
[TimeControl "8100+35"]

1. e4 {[%emt 0:00:30]} c5 {[%emt 0:00:00]} 2. c3 {[%emt 0:01:47]} d5 {[%emt 0:01:05]} 3. exd5 {[%emt 0:00:29]} Qxd5 {[%emt 0:00:38]} 4. d4 {[%emt 0:00:15]} cxd4 {[%emt 0:03:59]} 5. cxd4 {[%emt 0:01:08]} e6 {[%emt 0:06:09]} 6. Nc3 {[%emt 0:01:50]} Qd8 {[%emt 0:01:52]} 7. Nf3 {[%emt 0:03:25]} Nf6 {[%emt 0:03:21]} 8. Ne5 {[%emt 0:12:26]} a6 {[%emt 0:09:33]} 9. Bd3 {[%emt 0:07:21]} Bd6 {[%emt 0:08:26]} 10. O-O {[%emt 0:05:46]} O-O {[%emt 0:06:16]} 11. Bg5 {[%emt 0:14:12]} Be7 {[%emt 0:02:13]} 12. Re1 {[%emt 0:04:15]} Nbd7 {[%emt 0:10:44]} 13. Re3 {[%emt 0:17:51]} Nxe5 {[%emt 0:20:07]} 14. dxe5 {[%emt 0:00:42]} Nd5 {[%emt 0:07:01]} 15. Bxe7 {[%emt 0:00:58]} Qxe7 {[%emt 0:07:20]} 16. Rh3 {[%emt 0:01:35]} f5 {[%emt 0:05:26]} 17. exf6 {[%emt 0:03:15]} Nxf6 {[%emt 0:00:09]} 18. Ne4 {[%emt 0:02:12]} Nxe4 {[%emt 0:04:44]} 19. Bxe4 {[%emt 0:01:56]} h6 {[%emt 0:00:52]} 20. Qb3 {[%emt 0:06:44]} Kh8 {[%emt 0:04:34]} 21. Re1 {[%emt 0:02:59]} Rb8 {[%emt 0:07:48]} 22. Qc3 {[%emt 0:11:58]} Rf6 {[%emt 0:10:31]} 23. Qe5 {[%emt 0:01:06]} Ra8 {[%emt 0:01:00]} 24. Rd3 {[%emt 0:03:14]} Bd7 {[%emt 0:03:36]} 25. Qd6 {[%emt 0:06:04]} Qxd6 {[%emt 0:01:24]} 26. Rxd6 {[%emt 0:00:03]} Bb5 {[%emt 0:02:11]} 27. Bxb7 {[%emt 0:01:30]} Rb8 {[%emt 0:00:30]} 28. Be4 {[%emt 0:03:36]} e5 {[%emt 0:02:48]} 29. Red1 {[%emt 0:01:39]} Rxd6 {[%emt 0:03:22]} 30. Rxd6 {[%emt 0:00:05]} Re8 {[%emt 0:01:23]} 31. b3 {[%emt 0:01:34]} Kg8 {[%emt 0:01:30]} 32. a4 {[%emt 0:02:43]} Be2 {[%emt 0:00:19]} 33. f3 {[%emt 0:00:27]} 1-0

[Event "Irish Championship 2020"]
[Site "Dublin"]
[Date "2020.08.08"]
[Round "8.5"]
[White "Kanyamarala, Trisha"]
[Black "Flynn, Jacob"]
[Result "1/2-1/2"]
[ECO "D27"]
[WhiteElo "2193"]
[BlackElo "2114"]
[Annotator "ChessBase"]
[PlyCount "73"]
[EventDate "2020.08.01"]
[EventType "swiss"]
[EventCountry "IRL"]
[SourceTitle "playchess.com"]
[Source "ChessBase"]
[SourceQuality "1"]
[TimeControl "8100+35"]

1. d4 {[%emt 0:00:00]} Nf6 {[%emt 0:00:00]} 2. Nf3 {[%emt 0:00:04]} d5 {[%emt 0:00:20]} 3. c4 {[%emt 0:00:33]} e6 {[%emt 0:00:11]} 4. Nc3 {[%emt 0:00:55]} dxc4 {[%emt 0:00:23]} 5. e3 {[%emt 0:03:15]} a6 {[%emt 0:00:37]} 6. Bxc4 {[%emt 0:06:54]} b5 {[%emt 0:01:27]} 7. Be2 {[%emt 0:00:45]} Bb7 {[%emt 0:02:10]} 8. O-O {[%emt 0:04:08]} c5 {[%emt 0:02:56]} 9. b3 {[%emt 0:06:02]} Nbd7 {[%emt 0:02:36]} 10. Bb2 {[%emt 0:03:58]} Be7 {[%emt 0:04:00]} 11. Rc1 {[%emt 0:03:03]} O-O {[%emt 0:02:50]} 12. Bd3 {[%emt 0:11:36]} Rc8 {[%emt 0:16:09]} 13. Qe2 {[%emt 0:10:35]} cxd4 {[%emt 0:03:47]} 14. Nxd4 {[%emt 0:03:58]} Nc5 {[%emt 0:08:14]} 15. Bb1 {[%emt 0:07:56]} b4 {[%emt 0:09:04]} 16. Na4 {[%emt 0:10:17]} Nxa4 {[%emt 0:03:43]} 17. bxa4 {[%emt 0:00:10]} Qa5 {[%emt 0:05:40]} 18. Bc2 {[%emt 0:08:33]} Nd5 {[%emt 0:22:22]} 19. Nb3 {[%emt 0:31:00]} Qd8 {[%emt 0:06:57]} 20. Rfd1 {[%emt 0:17:34]} Bf6 {[%emt 0:03:13]} 21. Nd4 {[%emt 0:01:57]} Qe7 {[%emt 0:05:22]} 22. Qd3 {[%emt 0:01:47]} g6 {[%emt 0:00:48]} 23. Bb3 {[%emt 0:00:49]} Nc3 {[%emt 0:15:48]} 24. Bxc3 {[%emt 0:05:31]} bxc3 {[%emt 0:00:08]} 25. Rxc3 {[%emt 0:01:50]} Rxc3 {[%emt 0:00:58]} 26. Qxc3 {[%emt 0:00:06]} Rc8 {[%emt 0:00:25]} 27. Qd3 {[%emt 0:02:25]} Rd8 {[%emt 0:06:04]} 28. Qe2 {[%emt 0:03:01]} Qb4 {[%emt 0:03:38]} 29. Qd2 {[%emt 0:02:20]} Qxd2 {[%emt 0:08:05]} 30. Rxd2 {[%emt 0:00:02]} e5 {[%emt 0:00:13]} 31. Nf3 {[%emt 0:00:13]} Bxf3 {[%emt 0:00:09]} 32. Rxd8+ {[%emt 0:00:08]} Bxd8 {[%emt 0:00:03]} 33. gxf3 {[%emt 0:00:09]} a5 {[%emt 0:00:23]} 34. Kg2 {[%emt 0:01:00]} Kg7 {[%emt 0:00:32]} 35. Bd5 {[%emt 0:00:54]} Be7 {[%emt 0:00:16]} 36. Kg3 {[%emt 0:00:55]} g5 {[%emt 0:02:08]} 37. Kg4 {[%emt 0:00:57]} 1/2-1/2

[Event "Irish Championship 2020"]
[Site "Dublin"]
[Date "2020.08.08"]
[Round "8.6"]
[White "O`Gorman, Alice"]
[Black "Melaugh, Shane"]
[Result "0-1"]
[ECO "B47"]
[WhiteElo "1904"]
[BlackElo "2161"]
[Annotator "ChessBase"]
[PlyCount "86"]
[EventDate "2020.08.01"]
[EventType "swiss"]
[EventCountry "IRL"]
[SourceTitle "playchess.com"]
[Source "ChessBase"]
[SourceQuality "1"]
[TimeControl "8100+35"]

1. e4 {[%emt 0:00:00]} c5 {[%emt 0:08:46]} 2. Nf3 {[%emt 0:00:00]} Nc6 {[%emt 0:00:05]} 3. d4 {[%emt 0:00:00]} cxd4 {[%emt 0:00:03]} 4. Nxd4 {[%emt 0:00:00]} e6 {[%emt 0:00:24]} 5. Nc3 {[%emt 0:00:12]} Qc7 {[%emt 0:00:05]} 6. Ndb5 {[%emt 0:00:46]} Qb8 {[%emt 0:00:07]} 7. Be3 {[%emt 0:00:06]} a6 {[%emt 0:00:05]} 8. Bb6 {[%emt 0:00:12]} axb5 {[%emt 0:00:05]} 9. Nxb5 {[%emt 0:00:04]} Ra5 {[%emt 0:00:12]} 10. Nc7+ {[%emt 0:17:06]} Ke7 {[%emt 0:01:53]} 11. Qd2 {[%emt 0:02:51]} Nf6 {[%emt 0:04:05]} 12. Bxa5 {[%emt 0:10:33]} b6 {[%emt 0:00:23]} 13. Bb4+ {[%emt 0:10:42]} Nxb4 {[%emt 0:00:28]} 14. Qxb4+ {[%emt 0:00:45]} Kd8 {[%emt 0:00:08]} 15. Nxe6+ {[%emt 0:01:18]} fxe6 {[%emt 0:00:09]} 16. Qa4 {[%emt 0:04:15]} Qf4 {[%emt 0:01:45]} 17. f3 {[%emt 0:05:47]} Nd5 {[%emt 0:10:07]} 18. Be2 {[%emt 0:05:58]} Ne3 {[%emt 0:11:32]} 19. g3 {[%emt 0:04:26]} Qe5 {[%emt 0:07:45]} 20. c3 {[%emt 0:03:46]} Bc5 {[%emt 0:13:38]} 21. Rc1 {[%emt 0:03:58]} Qd6 {[%emt 0:02:04]} 22. b4 {[%emt 0:07:16]} Ng2+ {[%emt 0:02:23]} 23. Kf1 {[%emt 0:00:07]} Ne3+ {[%emt 0:03:13]} 24. Ke1 {[%emt 0:00:11]} Ng2+ {[%emt 0:01:05]} 25. Kf1 {[%emt 0:00:05]} Qd2 {[%emt 0:11:02]} 26. bxc5 {[%emt 0:06:01]} Ne3+ {[%emt 0:00:42]} 27. Kf2 {[%emt 0:03:22]} Ng4+ {[%emt 0:00:12]} 28. fxg4 {[%emt 0:03:06]} Rf8+ {[%emt 0:00:06]} 29. Kg2 {[%emt 0:01:06]} Qxe2+ {[%emt 0:00:05]} 30. Kh3 {[%emt 0:00:13]} Rf6 {[%emt 0:00:12]} 31. g5 {[%emt 0:01:39]} e5 {[%emt 0:00:07]} 32. Qd1 {[%emt 0:07:10]} d5+ {[%emt 0:01:13]} 33. Kh4 {[%emt 0:00:55]} Qxe4+ {[%emt 0:01:52]} 34. g4 {[%emt 0:01:27]} Bxg4 {[%emt 0:15:33]} 35. Qxg4 {[%emt 0:05:23]} Rf4 {[%emt 0:00:06]} 36. h3 {[%emt 0:01:13]} Rxg4+ {[%emt 0:03:30]} 37. hxg4 {[%emt 0:00:07]} bxc5 {[%emt 0:00:10]} 38. Rh2 {[%emt 0:03:20]} Qf4 {[%emt 0:01:23]} 39. Rcc2 {[%emt 0:00:23]} e4 {[%emt 0:01:14]} 40. Rhf2 {[%emt 0:03:00]} Qd6 {[%emt 0:00:14]} 41. Kh3 {[%emt 0:04:25]} d4 {[%emt 0:01:46]} 42. cxd4 {[%emt 0:05:31]} cxd4 {[%emt 0:00:06]} 43. Rf5 {[%emt 0:02:17]} d3 {[%emt 0:00:14]} 0-1

[Event "Irish Championship 2020"]
[Site "Dublin"]
[Date "2020.08.08"]
[Round "8.7"]
[White "Murray, David"]
[Black "Putar, Lara"]
[Result "1-0"]
[ECO "D85"]
[WhiteElo "2152"]
[BlackElo "1834"]
[Annotator "ChessBase"]
[PlyCount "47"]
[EventDate "2020.08.01"]
[EventType "swiss"]
[EventCountry "IRL"]
[SourceTitle "playchess.com"]
[Source "ChessBase"]
[SourceQuality "1"]
[TimeControl "8100+35"]

1. d4 {[%emt 0:06:01]} Nf6 {[%emt 0:00:00]} 2. c4 {[%emt 0:00:42]} g6 {[%emt 0:00:00]} 3. Nc3 {[%emt 0:00:12]} d5 {[%emt 0:00:00]} 4. Nf3 {[%emt 0:01:21]} Bg7 {[%emt 0:00:01]} 5. cxd5 {[%emt 0:00:13]} Nxd5 {[%emt 0:00:07]} 6. e4 {[%emt 0:00:07]} Nxc3 {[%emt 0:00:14]} 7. bxc3 {[%emt 0:00:05]} c5 {[%emt 0:00:21]} 8. Rb1 {[%emt 0:02:04]} O-O {[%emt 0:01:20]} 9. Be2 {[%emt 0:01:11]} Nc6 {[%emt 0:05:49]} 10. d5 {[%emt 0:04:17]} Ne5 {[%emt 0:02:10]} 11. Nxe5 {[%emt 0:01:42]} Bxe5 {[%emt 0:00:07]} 12. Qd2 {[%emt 0:01:59]} Qa5 {[%emt 0:05:31]} 13. Rb3 {[%emt 0:02:43]} e6 {[%emt 0:10:45]} 14. f4 {[%emt 0:03:11]} Bg7 {[%emt 0:02:21]} 15. d6 {[%emt 0:04:40]} Bd7 {[%emt 0:07:41]} 16. O-O {[%emt 0:04:44]} e5 {[%emt 0:14:33]} 17. f5 {[%emt 0:03:58]} Rfd8 {[%emt 0:12:46]} 18. Bc4 {[%emt 0:03:48]} gxf5 {[%emt 0:10:07]} 19. exf5 {[%emt 0:01:58]} h6 {[%emt 0:11:05]} 20. Rf3 {[%emt 0:05:13]} e4 {[%emt 0:03:13]} 21. Rg3 {[%emt 0:01:11]} Kh7 {[%emt 0:02:51]} 22. Rxg7+ {[%emt 0:00:43]} Kxg7 {[%emt 0:01:35]} 23. Qxh6+ {[%emt 0:00:12]} Kg8 {[%emt 0:00:09]} 24. f6 {[%emt 0:00:17]} 1-0

[Event "Irish Championship 2020"]
[Site "Dublin"]
[Date "2020.08.08"]
[Round "8.8"]
[White "O'Connell, Gerard"]
[Black "Peoples, Jonathon"]
[Result "1-0"]
[ECO "E58"]
[WhiteElo "2075"]
[BlackElo "1932"]
[Annotator "ChessBase"]
[PlyCount "47"]
[EventDate "2020.08.01"]
[EventType "swiss"]
[EventCountry "IRL"]
[SourceTitle "playchess.com"]
[Source "ChessBase"]
[SourceQuality "1"]
[TimeControl "8100+35"]

1. d4 {[%emt 0:00:00]} Nf6 {[%emt 0:00:00]} 2. c4 {[%emt 0:00:00]} e6 {[%emt 0:00:00]} 3. Nc3 {[%emt 0:00:00]} Bb4 {[%emt 0:00:00]} 4. e3 {[%emt 0:00:10]} O-O {[%emt 0:00:02]} 5. Bd3 {[%emt 0:00:19]} d5 {[%emt 0:00:06]} 6. a3 {[%emt 0:01:07]} Bxc3+ {[%emt 0:01:35]} 7. bxc3 {[%emt 0:00:04]} c5 {[%emt 0:02:52]} 8. Nf3 {[%emt 0:01:28]} Nc6 {[%emt 0:04:06]} 9. O-O {[%emt 0:00:11]} b6 {[%emt 0:06:03]} 10. Qa4 {[%emt 0:08:48]} Bd7 {[%emt 0:06:50]} 11. Qc2 {[%emt 0:00:22]} dxc4 {[%emt 0:01:00]} 12. Bxc4 {[%emt 0:00:36]} Na5 {[%emt 0:00:15]} 13. Bd3 {[%emt 0:04:01]} cxd4 {[%emt 0:12:12]} 14. exd4 {[%emt 0:01:10]} Rc8 {[%emt 0:04:02]} 15. Ne5 {[%emt 0:01:50]} Bc6 {[%emt 0:01:24]} 16. Bg5 {[%emt 0:02:34]} h6 {[%emt 0:02:22]} 17. Bh4 {[%emt 0:00:45]} Bd5 {[%emt 0:06:41]} 18. Ng4 {[%emt 0:07:25]} Bc4 {[%emt 0:16:32]} 19. Bh7+ {[%emt 0:35:07]} Kh8 {[%emt 0:01:09]} 20. Bxf6 {[%emt 0:00:07]} gxf6 {[%emt 0:00:10]} 21. Qd2 {[%emt 1:21:11]} Qd5 {[%emt 0:09:20]} 22. Qxh6 {[%emt 0:00:00]} Qg5 {[%emt 0:00:11]} 23. Qh3 {[%emt 0:00:00]} Kg7 {[%emt 0:00:15]} 24. f4 {[%emt 0:00:00]} 1-0

[Event "Irish Championship 2020"]
[Site "Dublin"]
[Date "2020.08.08"]
[Round "8.10"]
[White "Casey, Eoghan"]
[Black "Collins, Adam"]
[Result "0-1"]
[ECO "D00"]
[WhiteElo "1954"]
[BlackElo "1760"]
[Annotator "ChessBase"]
[PlyCount "68"]
[EventDate "2020.08.01"]
[EventType "swiss"]
[EventCountry "IRL"]
[SourceTitle "playchess.com"]
[Source "ChessBase"]
[SourceQuality "1"]
[TimeControl "8100+35"]

1. d4 {[%emt 0:02:18]} d5 {[%emt 2:15:35]} 2. Bf4 {[%emt 0:00:47]} Nf6 {[%emt 0:00:35]} 3. e3 {[%emt 0:00:44]} c5 {[%emt 0:00:35]} 4. c3 {[%emt 0:02:00]} Nc6 {[%emt 0:00:35]} 5. Nd2 {[%emt 0:04:39]} cxd4 {[%emt 0:00:35]} 6. exd4 {[%emt 0:00:18]} Bf5 {[%emt 0:00:35]} 7. Qb3 {[%emt 0:01:04]} Qc8 {[%emt 0:00:35]} 8. Ngf3 {[%emt 0:00:48]} e6 {[%emt 0:00:35]} 9. Nh4 {[%emt 0:05:59]} Be4 {[%emt 0:00:35]} 10. f3 {[%emt 0:17:28]} Bg6 {[%emt 0:00:35]} 11. Nxg6 {[%emt 0:00:15]} hxg6 {[%emt 0:00:00]} 12. g4 {[%emt 0:20:56]} a6 {[%emt 0:01:10]} 13. Bd3 {[%emt 0:01:46]} Be7 {[%emt 0:00:35]} 14. O-O {[%emt 0:14:10]} Bd8 {[%emt 0:00:35]} 15. Rae1 {[%emt 0:08:40]} Bc7 {[%emt 0:00:35]} 16. Bg3 {[%emt 0:16:12]} Qb8 {[%emt 0:00:35]} 17. Kg2 {[%emt 0:00:50]} Kd7 {[%emt 0:00:35]} 18. Rf2 {[%emt 0:08:57]} b5 {[%emt 0:00:35]} 19. Rfe2 {[%emt 0:03:45]} Bxg3 {[%emt 0:00:35]} 20. hxg3 {[%emt 0:01:49]} Rh7 {[%emt 0:00:35]} 21. g5 {[%emt 0:10:00]} Nh5 {[%emt 0:00:35]} 22. Nf1 {[%emt 0:03:16]} Qd6 {[%emt 0:00:35]} 23. f4 {[%emt 0:13:59]} Rah8 {[%emt 0:00:35]} 24. Kf3 {[%emt 0:05:34]} Nxf4 {[%emt 0:00:35]} 25. gxf4 {[%emt 0:00:24]} Rh3+ {[%emt 0:00:35]} 26. Ng3 {[%emt 0:01:03]} R8h4 {[%emt 0:00:35]} 27. Re5 {[%emt 0:02:08]} f6 {[%emt 0:00:35]} 28. Bxg6 {[%emt 0:00:37]} fxe5 {[%emt 0:00:35]} 29. dxe5 {[%emt 0:00:13]} Qf8 {[%emt 0:00:35]} 30. f5 {[%emt 0:00:36]} Ne7 {[%emt 0:00:35]} 31. Kg2 {[%emt 0:00:51]} Nxg6 {[%emt 0:00:35]} 32. fxe6+ {[%emt 0:00:49]} Kxe6 {[%emt 0:00:35]} 33. Rf1 {[%emt 0:00:31]} Rxg3+ 34. Kxg3 {[%emt 0:00:05]} Qxf1 {[%emt 0:01:10]} 0-1

[Event "Irish Championship 2020"]
[Site "Dublin"]
[Date "2020.08.08"]
[Round "8.11"]
[White "Putar, Leon"]
[Black "Lyons, Brendan"]
[Result "1-0"]
[ECO "B01"]
[WhiteElo "1894"]
[BlackElo "1941"]
[Annotator "ChessBase"]
[PlyCount "71"]
[EventDate "2020.08.01"]
[EventType "swiss"]
[EventCountry "IRL"]
[SourceTitle "playchess.com"]
[Source "ChessBase"]
[SourceQuality "1"]
[TimeControl "8100+35"]

1. e4 {[%emt 2:15:35]} d5 {[%emt 0:09:15]} 2. exd5 {[%emt 0:00:00]} Nf6 {[%emt 0:00:44]} 3. d4 {[%emt 0:00:00]} Bg4 {[%emt 0:00:28]} 4. Bb5+ {[%emt 0:00:00]} Nbd7 {[%emt 0:01:16]} 5. Be2 {[%emt 0:00:00]} Bxe2 {[%emt 0:02:21]} 6. Qxe2 {[%emt 0:00:00]} Nxd5 {[%emt 0:02:58]} 7. Nf3 {[%emt 0:00:00]} e6 {[%emt 0:04:23]} 8. c4 {[%emt 0:00:00]} Bb4+ {[%emt 0:02:51]} 9. Bd2 {[%emt 0:00:00]} Bxd2+ {[%emt 0:07:47]} 10. Qxd2 {[%emt 0:00:00]} Ne7 {[%emt 0:08:41]} 11. Nc3 {[%emt 0:00:00]} a6 {[%emt 0:02:08]} 12. b3 {[%emt 0:00:00]} O-O {[%emt 0:08:22]} 13. h4 {[%emt 0:00:00]} e5 {[%emt 0:14:22]} 14. dxe5 {[%emt 0:00:00]} Nc6 {[%emt 0:04:26]} 15. O-O-O {[%emt 0:00:00]} Ndxe5 {[%emt 0:02:53]} 16. Qc2 {[%emt 0:00:00]} Qf6 {[%emt 0:07:59]} 17. Nxe5 {[%emt 0:00:00]} Qxe5 {[%emt 0:02:00]} 18. Rhe1 {[%emt 0:00:00]} Qf4+ {[%emt 0:08:24]} 19. Kb1 {[%emt 0:00:00]} Nb4 {[%emt 0:10:53]} 20. Qe4 {[%emt 0:00:00]} Qxf2 {[%emt 0:03:56]} 21. Re2 {[%emt 0:00:00]} Qf6 {[%emt 0:05:14]} 22. Re3 {[%emt 0:00:00]} Qf2 {[%emt 0:03:01]} 23. a3 {[%emt 0:00:00]} Nc6 {[%emt 0:13:21]} 24. h5 {[%emt 0:00:00]} h6 {[%emt 0:04:44]} 25. Rf3 {[%emt 0:00:00]} Qxg2 {[%emt 0:04:54]} 26. Qf4 {[%emt 0:00:00]} Qg5 {[%emt 0:03:10]} 27. Qh2 {[%emt 0:00:00]} Rad8 {[%emt 0:02:30]} 28. Rg1 {[%emt 0:00:00]} Rd2 {[%emt 0:01:14]} 29. Qh1 {[%emt 0:00:00]} Qe5 {[%emt 0:02:47]} 30. Rfg3 {[%emt 0:00:00]} Qf5+ {[%emt 0:00:44]} 31. Qe4 {[%emt 0:00:00]} Qxe4+ {[%emt 0:02:23]} 32. Nxe4 {[%emt 0:00:00]} Re2 {[%emt 0:02:06]} 33. Rxg7+ {[%emt 0:00:07]} Kh8 {[%emt 0:00:05]} 34. Nf6 {[%emt 0:00:07]} Re1+ {[%emt 0:00:04]} 35. Kb2 {[%emt 0:00:33]} Rxg1 {[%emt 0:01:27]} 36. Rh7# {[%emt 0:00:08]} 1-0

[Event "Irish Championship 2020"]
[Site "Dublin"]
[Date "2020.08.08"]
[Round "8.12"]
[White "Carroll, Peter"]
[Black "Mirza, Diana"]
[Result "1-0"]
[ECO "B01"]
[WhiteElo "2009"]
[BlackElo "1939"]
[Annotator "ChessBase"]
[PlyCount "105"]
[EventDate "2020.08.01"]
[EventType "swiss"]
[EventCountry "IRL"]
[SourceTitle "playchess.com"]
[Source "ChessBase"]
[SourceQuality "1"]
[TimeControl "8100+35"]

1. e4 {[%emt 0:00:00]} d5 {[%emt 0:00:00]} 2. exd5 {[%emt 0:00:00]} Qxd5 {[%emt 0:00:00]} 3. Nc3 {[%emt 0:00:00]} Qd8 {[%emt 0:00:00]} 4. d4 {[%emt 0:00:00]} Nf6 {[%emt 0:00:03]} 5. Nf3 {[%emt 0:00:00]} Bg4 {[%emt 0:00:20]} 6. h3 {[%emt 0:00:00]} Bxf3 {[%emt 0:00:18]} 7. Qxf3 {[%emt 0:00:00]} c6 {[%emt 0:00:11]} 8. Be3 {[%emt 0:00:00]} e6 {[%emt 0:01:10]} 9. a3 {[%emt 0:00:00]} Be7 {[%emt 0:02:34]} 10. O-O-O {[%emt 0:00:35]} Nd5 {[%emt 0:03:07]} 11. Ne4 {[%emt 0:07:48]} Nxe3 {[%emt 0:07:55]} 12. fxe3 {[%emt 0:15:30]} Nd7 {[%emt 0:06:02]} 13. Qg3 {[%emt 0:07:30]} O-O {[%emt 0:00:55]} 14. Bd3 {[%emt 0:03:31]} f5 {[%emt 0:05:47]} 15. Nd2 {[%emt 0:11:00]} b5 {[%emt 0:08:38]} 16. Qf3 {[%emt 0:02:16]} Qb6 {[%emt 0:04:24]} 17. g4 {[%emt 0:05:21]} c5 {[%emt 0:11:13]} 18. gxf5 {[%emt 0:18:45]} cxd4 {[%emt 0:01:19]} 19. exd4 {[%emt 0:01:06]} Qxd4 {[%emt 0:13:42]} 20. Nb3 {[%emt 0:01:01]} Qb6 {[%emt 0:09:12]} 21. Qe2 {[%emt 0:01:26]} Bg5+ {[%emt 0:06:47]} 22. Kb1 {[%emt 0:00:37]} exf5 {[%emt 0:00:16]} 23. Bxb5 {[%emt 0:17:40]} Nf6 {[%emt 0:01:38]} 24. Qe5 {[%emt 0:02:06]} Ne4 {[%emt 0:12:12]} 25. Bd7 {[%emt 0:07:38]} Qf6 {[%emt 0:04:37]} 26. Qxf6 {[%emt 0:10:06]} Rxf6 {[%emt 0:02:23]} 27. Rd5 {[%emt 0:01:03]} g6 {[%emt 0:08:08]} 28. c4 {[%emt 0:01:45]} Rb8 {[%emt 0:02:12]} 29. Ka2 {[%emt 0:07:47]} Rfb6 {[%emt 0:01:17]} 30. Rb5 {[%emt 0:00:37]} Bf6 {[%emt 0:05:08]} 31. a4 {[%emt 0:02:02]} a6 {[%emt 0:04:52]} 32. Rxb6 {[%emt 0:01:23]} Rxb6 {[%emt 0:00:02]} 33. c5 {[%emt 0:00:33]} Rb4 {[%emt 0:01:46]} 34. Ka3 {[%emt 0:01:23]} Rxb3+ {[%emt 0:01:05]} 35. Kxb3 {[%emt 0:00:40]} Nxc5+ {[%emt 0:00:03]} 36. Kc4 {[%emt 0:00:08]} Nxd7 {[%emt 0:00:03]} 37. b4 {[%emt 0:00:11]} Nb6+ {[%emt 0:01:08]} 38. Kb3 {[%emt 0:00:17]} Kf7 {[%emt 0:01:04]} 39. a5 {[%emt 0:00:58]} Nd5 {[%emt 0:02:46]} 40. Rc1 {[%emt 0:01:28]} Be7 {[%emt 0:00:34]} 41. b5 {[%emt 0:00:21]} axb5 {[%emt 0:01:47]} 42. a6 {[%emt 0:00:23]} Bg5 {[%emt 0:08:20]} 43. Rc5 {[%emt 0:08:27]} Nb6 {[%emt 0:10:09]} 44. Rc7+ {[%emt 0:02:06]} Be7 {[%emt 0:03:05]} 45. a7 {[%emt 0:01:05]} f4 {[%emt 0:00:48]} 46. Kc2 {[%emt 0:03:31]} f3 {[%emt 0:01:18]} 47. Kd1 {[%emt 0:00:31]} f2 {[%emt 0:00:25]} 48. Ke2 {[%emt 0:00:06]} Na8 {[%emt 0:00:31]} 49. Rc8 {[%emt 0:00:45]} Nb6 {[%emt 0:00:40]} 50. Rb8 {[%emt 0:00:17]} Bc5 {[%emt 0:01:24]} 51. Rxb6 {[%emt 0:00:20]} Bxb6 {[%emt 0:00:02]} 52. a8=Q {[%emt 0:00:14]} Bc5 {[%emt 0:00:54]} 53. Qd5+ {[%emt 0:00:08]} 1-0